[Event "Titled Tuesday Blitz June 27 Early 2023"]
[White "Bruedigam, Martin"]
[Black "Remizov, Yaroslav"]
[WhiteFideId "24608033"]
[BlackFideId "34134015"]
[WhiteElo "2524"]
[BlackElo "2809"]
[Result "1/2-1/2"]
[Round "3"]
[TimeControl "180+2"]
[Date "2023.06.27"]
[WhiteClock "0:00:20"]
[BlackClock "0:00:22"]
[Board "82"]

1. d4 {[%clk 0:02:58]}  Nf6 {[%clk 0:02:59]} 2. c4 {[%clk 0:02:58]}  c5 {[%clk 0:02:59]} 3. d5 {[%clk 0:02:58]}  b5 {[%clk 0:02:59]} 4. cxb5 {[%clk 0:02:58]}  a6 {[%clk 0:02:59]} 5. b6 {[%clk 0:02:59]}  e6 {[%clk 0:03:00]} 6. Nc3 {[%clk 0:02:59]}  exd5 {[%clk 0:03:00]} 7. Nxd5 {[%clk 0:02:59]}  Nxd5 {[%clk 0:03:01]} 8. Qxd5 {[%clk 0:02:58]}  Nc6 {[%clk 0:03:02]} 9. Nf3 {[%clk 0:02:53]}  Rb8 {[%clk 0:03:01]} 10. e3 {[%clk 0:02:53]}  Qf6 {[%clk 0:02:51]} 11. Be2 {[%clk 0:02:50]}  Be7 {[%clk 0:02:50]} 12. O-O {[%clk 0:02:50]}  O-O {[%clk 0:02:47]} 13. Rb1 {[%clk 0:02:44]}  Rxb6 {[%clk 0:02:45]} 14. b3 {[%clk 0:02:32]}  Nb4 {[%clk 0:02:42]} 15. Qd2 {[%clk 0:02:31]}  Bb7 {[%clk 0:02:37]} 16. a3 {[%clk 0:02:23]}  Nd5 {[%clk 0:02:17]} 17. Bb2 {[%clk 0:02:18]}  Qg6 {[%clk 0:02:12]} 18. Ne5 {[%clk 0:02:11]}  Qe6 {[%clk 0:02:02]} 19. e4 {[%clk 0:01:49]}  Nf6 {[%clk 0:01:56]} 20. Bc4 {[%clk 0:01:16]}  d5 {[%clk 0:01:56]} 21. exd5 {[%clk 0:01:11]}  Bxd5 {[%clk 0:01:56]} 22. Rfe1 {[%clk 0:01:04]}  Qd6 {[%clk 0:01:11]} 23. Bxd5 {[%clk 0:00:35]}  Qxd5 {[%clk 0:01:07]} 24. Qxd5 {[%clk 0:00:32]}  Nxd5 {[%clk 0:01:08]} 25. Rbd1 {[%clk 0:00:32]}  Rxb3 {[%clk 0:00:59]} 26. Nc4 {[%clk 0:00:19]}  Bf6 {[%clk 0:00:46]} 27. Rxd5 {[%clk 0:00:19]}  Bxb2 {[%clk 0:00:46]} 28. Nxb2 {[%clk 0:00:20]}  Rxb2 {[%clk 0:00:46]} 29. Rxc5 {[%clk 0:00:20]}  g6 {[%clk 0:00:40]} 30. Ra5 {[%clk 0:00:20]}  Rb6 {[%clk 0:00:38]} 31. g3 {[%clk 0:00:20]}  Rd8 {[%clk 0:00:36]} 32. Re3 {[%clk 0:00:20]}  Rd1+ {[%clk 0:00:36]} 33. Kg2 {[%clk 0:00:21]}  Rf6 {[%clk 0:00:35]} 34. Rf3 {[%clk 0:00:21]}  Re6 {[%clk 0:00:34]} 35. h4 {[%clk 0:00:21]}  h5 {[%clk 0:00:34]} 36. Rf4 {[%clk 0:00:21]}  Rd3 {[%clk 0:00:33]} 37. Rfa4 {[%clk 0:00:20]}  Rdd6 {[%clk 0:00:33]} 38. Rf4 {[%clk 0:00:20]}  Rd2 {[%clk 0:00:33]} 39. Rfa4 {[%clk 0:00:20]}  Rf6 {[%clk 0:00:32]} 40. Rf4 {[%clk 0:00:18]}  Re6 {[%clk 0:00:27]} 41. Rfa4 {[%clk 0:00:16]}  Rdd6 {[%clk 0:00:27]} 42. Rf4 {[%clk 0:00:16]}  Kg7 {[%clk 0:00:27]} 43. Kf3 {[%clk 0:00:16]}  Rd3+ {[%clk 0:00:27]} 44. Kg2 {[%clk 0:00:17]}  Rd2 {[%clk 0:00:27]} 45. Kg1 {[%clk 0:00:17]}  Rd1+ {[%clk 0:00:25]} 46. Kg2 {[%clk 0:00:18]}  Rd2 {[%clk 0:00:24]} 47. Kg1 {[%clk 0:00:18]}  Rc6 {[%clk 0:00:23]} 48. Kg2 {[%clk 0:00:18]}  Ra2 {[%clk 0:00:20]} 49. Kg1 {[%clk 0:00:18]}  Rc3 {[%clk 0:00:18]} 50. Rxa6 {[%clk 0:00:17]}  Rcxa3 {[%clk 0:00:18]} 51. Rxa3 {[%clk 0:00:17]}  Rxa3 {[%clk 0:00:19]} 52. Kg2 {[%clk 0:00:18]}  Ra7 {[%clk 0:00:19]} 53. Kg1 {[%clk 0:00:18]}  Re7 {[%clk 0:00:19]} 54. Kg2 {[%clk 0:00:19]}  Rd7 {[%clk 0:00:20]} 55. Kg1 {[%clk 0:00:19]}  Re7 {[%clk 0:00:21]} 56. Kg2 {[%clk 0:00:20]}  Rd7 {[%clk 0:00:21]} 57. Kg1 {[%clk 0:00:20]}  Re7 {[%clk 0:00:22]} 1/2-1/2


[Site "https://www.chess.com"]

[Event "Titled Tuesday Blitz June 27 Early 2023"]
[White "Kuzmin, Roman"]
[Black "Gharibyan, Mamikon"]
[WhiteFideId "44134932"]
[BlackFideId "13308300"]
[WhiteElo "2523"]
[BlackElo "2805"]
[Result "1/2-1/2"]
[Round "3"]
[TimeControl "180+2"]
[Date "2023.06.27"]
[WhiteClock "0:00:04"]
[BlackClock "0:00:05"]
[Board "84"]

1. e4 {[%clk 0:03:00]}  e6 {[%clk 0:02:53]} 2. d4 {[%clk 0:02:59]}  d5 {[%clk 0:02:53]} 3. Nc3 {[%clk 0:02:59]}  Nf6 {[%clk 0:02:52]} 4. Bg5 {[%clk 0:02:56]}  h6 {[%clk 0:02:52]} 5. Bxf6 {[%clk 0:02:44]}  Qxf6 {[%clk 0:02:53]} 6. exd5 {[%clk 0:02:35]}  Bb4 {[%clk 0:02:52]} 7. dxe6 {[%clk 0:02:23]}  Bxe6 {[%clk 0:02:49]} 8. Bd3 {[%clk 0:02:22]}  Bd5 {[%clk 0:02:36]} 9. Qg4 {[%clk 0:02:01]}  h5 {[%clk 0:02:23]} 10. Qc8+ {[%clk 0:01:53]}  Qd8 {[%clk 0:02:18]} 11. Qxd8+ {[%clk 0:01:36]}  Kxd8 {[%clk 0:02:19]} 12. f3 {[%clk 0:01:36]}  c5 {[%clk 0:02:07]} 13. O-O-O {[%clk 0:01:28]}  Bxc3 {[%clk 0:02:05]} 14. bxc3 {[%clk 0:01:28]}  cxd4 {[%clk 0:02:06]} 15. Be4 {[%clk 0:01:12]}  Bxe4 {[%clk 0:02:05]} 16. fxe4 {[%clk 0:01:13]}  Re8 {[%clk 0:02:03]} 17. Rxd4+ {[%clk 0:01:11]}  Kc7 {[%clk 0:02:03]} 18. Nf3 {[%clk 0:01:10]}  Nc6 {[%clk 0:02:03]} 19. Rd5 {[%clk 0:01:10]}  Rxe4 {[%clk 0:02:01]} 20. Rhd1 {[%clk 0:01:08]}  Re2 {[%clk 0:01:44]} 21. Rd7+ {[%clk 0:01:03]}  Kb6 {[%clk 0:01:38]} 22. Rxf7 {[%clk 0:01:04]}  Rxg2 {[%clk 0:01:37]} 23. Rdd7 {[%clk 0:01:03]}  Rb8 {[%clk 0:01:23]} 24. Rxg7 {[%clk 0:00:57]}  Rf2 {[%clk 0:01:23]} 25. Rdf7 {[%clk 0:00:43]}  a6 {[%clk 0:01:21]} 26. Rh7 {[%clk 0:00:38]}  Na5 {[%clk 0:01:17]} 27. Ne5 {[%clk 0:00:32]}  Rxf7 {[%clk 0:01:09]} 28. Rxf7 {[%clk 0:00:33]}  Rg8 {[%clk 0:01:07]} 29. Rf5 {[%clk 0:00:26]}  Rg1+ {[%clk 0:00:53]} 30. Kb2 {[%clk 0:00:25]}  h4 {[%clk 0:00:51]} 31. Rh5 {[%clk 0:00:22]}  Re1 {[%clk 0:00:38]} 32. Nd3 {[%clk 0:00:16]}  Nc4+ {[%clk 0:00:36]} 33. Kb3 {[%clk 0:00:15]}  Nd2+ {[%clk 0:00:36]} 34. Ka3 {[%clk 0:00:13]}  Re4 {[%clk 0:00:26]} 35. Rh6+ {[%clk 0:00:09]}  Ka5 {[%clk 0:00:25]} 36. Nc5 {[%clk 0:00:06]}  Nc4+ {[%clk 0:00:20]} 37. Kb3 {[%clk 0:00:05]}  Nd2+ {[%clk 0:00:21]} 38. Kb2 {[%clk 0:00:06]}  Nc4+ {[%clk 0:00:20]} 39. Kb3 {[%clk 0:00:06]}  Nd2+ {[%clk 0:00:08]} 40. Kb2 {[%clk 0:00:06]}  Re7 {[%clk 0:00:08]} 41. Rxh4 {[%clk 0:00:03]}  Kb5 {[%clk 0:00:07]} 42. Nb3 {[%clk 0:00:03]}  Nc4+ {[%clk 0:00:07]} 43. Kb1 {[%clk 0:00:03]}  Re1+ {[%clk 0:00:07]} 44. Nc1 {[%clk 0:00:04]}  a5 {[%clk 0:00:06]} 45. a4+ {[%clk 0:00:04]}  Kc5 {[%clk 0:00:05]} 46. Rh5+ {[%clk 0:00:04]}  Kc6 {[%clk 0:00:04]} 47. h4 {[%clk 0:00:04]}  Na3+ {[%clk 0:00:03]} 48. Kb2 {[%clk 0:00:04]}  Nc4+ {[%clk 0:00:03]} 49. Kb3 {[%clk 0:00:03]}  Nd2+ {[%clk 0:00:04]} 50. Kb2 {[%clk 0:00:03]}  Nc4+ {[%clk 0:00:04]} 51. Kb1 {[%clk 0:00:04]}  Nd2+ {[%clk 0:00:04]} 52. Kb2 {[%clk 0:00:04]}  Nc4+ {[%clk 0:00:05]} 1/2-1/2


[Site "https://www.chess.com"]

[Event "Titled Tuesday Blitz June 27 Early 2023"]
[White "Tanenbaum, Zachary"]
[Black "Mogirzan, Matei-Valeriu"]
[WhiteFideId "2060850"]
[BlackFideId "1257455"]
[WhiteElo "2735"]
[BlackElo "2522"]
[Result "1-0"]
[Round "3"]
[TimeControl "180+2"]
[Date "2023.06.27"]
[WhiteClock "0:00:31"]
[BlackClock "0:00:00"]
[Board "87"]

1. e4 {[%clk 0:03:00]}  c5 {[%clk 0:02:52]} 2. Nf3 {[%clk 0:03:01]}  e6 {[%clk 0:02:51]} 3. d4 {[%clk 0:03:01]}  cxd4 {[%clk 0:02:52]} 4. Nxd4 {[%clk 0:03:01]}  Nc6 {[%clk 0:02:49]} 5. Nc3 {[%clk 0:03:01]}  Nf6 {[%clk 0:02:48]} 6. Ndb5 {[%clk 0:02:55]}  d6 {[%clk 0:02:38]} 7. Bf4 {[%clk 0:02:54]}  e5 {[%clk 0:02:36]} 8. Bg5 {[%clk 0:02:55]}  a6 {[%clk 0:02:35]} 9. Na3 {[%clk 0:02:55]}  Be7 {[%clk 0:02:33]} 10. Bxf6 {[%clk 0:02:54]}  Bxf6 {[%clk 0:02:27]} 11. Nc4 {[%clk 0:02:54]}  Be7 {[%clk 0:02:26]} 12. Nd5 {[%clk 0:02:53]}  Be6 {[%clk 0:02:20]} 13. Nxe7 {[%clk 0:02:41]}  Kxe7 {[%clk 0:02:18]} 14. c3 {[%clk 0:02:36]}  Re8 {[%clk 0:01:54]} 15. Qd2 {[%clk 0:02:34]}  Kf8 {[%clk 0:01:53]} 16. Qxd6+ {[%clk 0:02:16]}  Qxd6 {[%clk 0:01:43]} 17. Nxd6 {[%clk 0:02:17]}  Red8 {[%clk 0:01:43]} 18. O-O-O {[%clk 0:02:06]}  Bxa2 {[%clk 0:01:39]} 19. Nxb7 {[%clk 0:01:56]}  Rdb8 {[%clk 0:00:52]} 20. Nc5 {[%clk 0:01:55]}  Rd8 {[%clk 0:00:47]} 21. Bxa6 {[%clk 0:01:45]}  Na5 {[%clk 0:00:41]} 22. Bb5 {[%clk 0:00:45]}  Rdc8 {[%clk 0:00:18]} 23. Nd7+ {[%clk 0:00:41]}  Ke7 {[%clk 0:00:18]} 24. Nb6 {[%clk 0:00:38]}  Nb3+ {[%clk 0:00:17]} 25. Kc2 {[%clk 0:00:38]}  Nd4+ {[%clk 0:00:01]} 26. Rxd4 {[%clk 0:00:37]}  exd4 {[%clk 0:00:02]} 27. Nxc8+ {[%clk 0:00:37]}  Rxc8 {[%clk 0:00:03]} 28. Ra1 {[%clk 0:00:33]}  Be6 {[%clk 0:00:02]} 29. f4 {[%clk 0:00:32]}  dxc3 {[%clk 0:00:02]} 30. bxc3 {[%clk 0:00:33]}  f5 {[%clk 0:00:03]} 31. e5 {[%clk 0:00:31]}  Bd5 {[%clk 0:00:03]} 32. g3 {[%clk 0:00:31]}  g6 {[%clk 0:00:03]} 33. Ra7+ {[%clk 0:00:31]}  Ke6 {[%clk 0:00:00]} 34. Bd7+ {[%clk 0:00:31]} 1-0


[Site "https://www.chess.com"]

[Event "Titled Tuesday Blitz June 27 Early 2023"]
[White "Berezin, Viktor"]
[Black "Klukin, Kirill"]
[WhiteFideId "14107872"]
[BlackFideId "24199273"]
[WhiteElo "2519"]
[BlackElo "2731"]
[Result "0-1"]
[Round "3"]
[TimeControl "180+2"]
[Date "2023.06.27"]
[WhiteClock "0:00:02"]
[BlackClock "0:00:14"]
[Board "88"]

1. d4 {[%clk 0:02:56]}  Nf6 {[%clk 0:02:43]} 2. Nf3 {[%clk 0:02:55]}  b6 {[%clk 0:02:42]} 3. g3 {[%clk 0:02:54]}  Bb7 {[%clk 0:02:42]} 4. Bg2 {[%clk 0:02:55]}  e6 {[%clk 0:02:42]} 5. O-O {[%clk 0:02:56]}  d5 {[%clk 0:02:43]} 6. c4 {[%clk 0:02:55]}  c6 {[%clk 0:02:43]} 7. Qc2 {[%clk 0:02:54]}  Be7 {[%clk 0:02:43]} 8. b3 {[%clk 0:02:54]}  O-O {[%clk 0:02:44]} 9. Bb2 {[%clk 0:02:55]}  a5 {[%clk 0:02:45]} 10. Nbd2 {[%clk 0:02:44]}  Na6 {[%clk 0:02:45]} 11. a3 {[%clk 0:02:43]}  Rc8 {[%clk 0:02:42]} 12. Ne5 {[%clk 0:02:42]}  Nd7 {[%clk 0:02:40]} 13. Nxd7 {[%clk 0:02:40]}  Qxd7 {[%clk 0:02:40]} 14. Rac1 {[%clk 0:02:41]}  c5 {[%clk 0:02:39]} 15. dxc5 {[%clk 0:02:39]}  Nxc5 {[%clk 0:02:39]} 16. Qb1 {[%clk 0:02:33]}  dxc4 {[%clk 0:02:27]} 17. Bxb7 {[%clk 0:02:21]}  Qxb7 {[%clk 0:02:23]} 18. Rxc4 {[%clk 0:02:18]}  Rfd8 {[%clk 0:02:13]} 19. Nf3 {[%clk 0:02:02]}  Qd5 {[%clk 0:01:58]} 20. Rg4 {[%clk 0:01:56]}  g6 {[%clk 0:01:44]} 21. Ne5 {[%clk 0:01:42]}  f5 {[%clk 0:01:12]} 22. Nxg6 {[%clk 0:01:06]}  hxg6 {[%clk 0:01:04]} 23. Rxg6+ {[%clk 0:01:06]}  Kf7 {[%clk 0:01:02]} 24. Rg7+ {[%clk 0:01:03]}  Ke8 {[%clk 0:00:57]} 25. Rg8+ {[%clk 0:01:00]}  Kf7 {[%clk 0:00:54]} 26. Rg7+ {[%clk 0:01:00]}  Kf8 {[%clk 0:00:39]} 27. Qc1 {[%clk 0:00:57]}  Qd2 {[%clk 0:00:37]} 28. Qb1 {[%clk 0:00:27]}  Qxe2 {[%clk 0:00:29]} 29. Rh7 {[%clk 0:00:23]}  Ne4 {[%clk 0:00:13]} 30. Rh8+ {[%clk 0:00:11]}  Kf7 {[%clk 0:00:14]} 31. Rh7+ {[%clk 0:00:11]}  Ke8 {[%clk 0:00:13]} 32. Rh8+ {[%clk 0:00:09]}  Kd7 {[%clk 0:00:13]} 33. Qd1+ {[%clk 0:00:04]}  Qxd1 {[%clk 0:00:12]} 34. Rxd1+ {[%clk 0:00:05]}  Kc6 {[%clk 0:00:13]} 35. Rc1+ {[%clk 0:00:03]}  Kb7 {[%clk 0:00:13]} 36. Rh7 {[%clk 0:00:02]}  Rxc1+ {[%clk 0:00:12]} 37. Bxc1 {[%clk 0:00:03]}  Rd7 {[%clk 0:00:11]} 38. Bb2 {[%clk 0:00:03]}  Kc6 {[%clk 0:00:11]} 39. h3 {[%clk 0:00:03]}  Nc5 {[%clk 0:00:11]} 40. b4 {[%clk 0:00:03]}  axb4 {[%clk 0:00:12]} 41. axb4 {[%clk 0:00:04]}  Nd3 {[%clk 0:00:13]} 42. Bc3 {[%clk 0:00:03]}  Bxb4 {[%clk 0:00:12]} 43. Rxd7 {[%clk 0:00:03]}  Kxd7 {[%clk 0:00:13]} 44. Bd4 {[%clk 0:00:03]}  Bc5 {[%clk 0:00:14]} 45. Bc3 {[%clk 0:00:03]}  Nxf2 {[%clk 0:00:14]} 46. h4 {[%clk 0:00:02]}  Ne4+ {[%clk 0:00:14]} 0-1


[Site "https://www.chess.com"]

[Event "Titled Tuesday Blitz June 27 Early 2023"]
[White "Boruchovsky, Avital"]
[Black "Liu, Casper"]
[WhiteFideId "2800055"]
[BlackFideId "1454153"]
[WhiteElo "2727"]
[BlackElo "2516"]
[Result "1-0"]
[Round "3"]
[TimeControl "180+2"]
[Date "2023.06.27"]
[WhiteClock "0:02:30"]
[BlackClock "0:02:12"]
[Board "89"]

1. d4 {[%clk 0:02:56]}  Nf6 {[%clk 0:02:59]} 2. Nc3 {[%clk 0:02:56]}  a6 {[%clk 0:02:59]} 3. e4 {[%clk 0:02:55]}  d6 {[%clk 0:03:00]} 4. a4 {[%clk 0:02:54]}  g6 {[%clk 0:03:01]} 5. Be2 {[%clk 0:02:53]}  Bg7 {[%clk 0:03:01]} 6. h4 {[%clk 0:02:53]}  O-O {[%clk 0:03:02]} 7. h5 {[%clk 0:02:53]}  c5 {[%clk 0:03:02]} 8. hxg6 {[%clk 0:02:50]}  hxg6 {[%clk 0:02:56]} 9. Bh6 {[%clk 0:02:50]}  Bxh6 {[%clk 0:02:56]} 10. Rxh6 {[%clk 0:02:50]}  Kg7 {[%clk 0:02:57]} 11. Rh1 {[%clk 0:02:49]}  cxd4 {[%clk 0:02:55]} 12. Qxd4 {[%clk 0:02:48]}  Nc6 {[%clk 0:02:55]} 13. Qd2 {[%clk 0:02:48]}  Rh8 {[%clk 0:02:56]} 14. Rxh8 {[%clk 0:02:48]}  Qxh8 {[%clk 0:02:57]} 15. O-O-O {[%clk 0:02:43]}  Be6 {[%clk 0:02:51]} 16. f4 {[%clk 0:02:41]}  b5 {[%clk 0:02:48]} 17. f5 {[%clk 0:02:37]}  Bd7 {[%clk 0:02:38]} 18. fxg6 {[%clk 0:02:36]}  Kxg6 {[%clk 0:02:31]} 19. Nf3 {[%clk 0:02:31]}  bxa4 {[%clk 0:02:12]} 20. Qg5+ {[%clk 0:02:30]} 1-0


[Site "https://www.chess.com"]

[Event "Titled Tuesday Blitz June 27 Early 2023"]
[White "Droin, Augustin"]
[Black "Goltsev, Dmitry"]
[WhiteFideId "45105987"]
[BlackFideId "24176710"]
[WhiteElo "2515"]
[BlackElo "2725"]
[Result "1-0"]
[Round "3"]
[TimeControl "180+2"]
[Date "2023.06.27"]
[WhiteClock "0:00:17"]
[BlackClock "0:00:03"]
[Board "90"]

1. e4 {[%clk 0:02:34]}  e6 {[%clk 0:02:57]} 2. d4 {[%clk 0:02:31]}  d5 {[%clk 0:02:58]} 3. exd5 {[%clk 0:02:32]}  exd5 {[%clk 0:02:59]} 4. Nf3 {[%clk 0:02:32]}  Nf6 {[%clk 0:02:58]} 5. Bd3 {[%clk 0:02:32]}  c5 {[%clk 0:02:58]} 6. O-O {[%clk 0:02:31]}  Be7 {[%clk 0:02:57]} 7. c3 {[%clk 0:02:28]}  O-O {[%clk 0:02:56]} 8. h3 {[%clk 0:02:29]}  Nc6 {[%clk 0:02:56]} 9. Be3 {[%clk 0:02:26]}  cxd4 {[%clk 0:02:53]} 10. Nxd4 {[%clk 0:02:27]}  Bd6 {[%clk 0:02:53]} 11. Nd2 {[%clk 0:02:26]}  Re8 {[%clk 0:02:52]} 12. Re1 {[%clk 0:02:18]}  a6 {[%clk 0:02:51]} 13. Qc2 {[%clk 0:02:13]}  Bc7 {[%clk 0:02:47]} 14. Nxc6 {[%clk 0:02:05]}  bxc6 {[%clk 0:02:48]} 15. Bg5 {[%clk 0:02:05]}  Be6 {[%clk 0:02:42]} 16. Bxh7+ {[%clk 0:02:03]}  Kf8 {[%clk 0:02:41]} 17. Bf5 {[%clk 0:02:01]}  Qd6 {[%clk 0:02:40]} 18. Nf3 {[%clk 0:01:59]}  Ne4 {[%clk 0:02:18]} 19. Bxe4 {[%clk 0:01:20]}  dxe4 {[%clk 0:02:14]} 20. Qxe4 {[%clk 0:01:21]}  Bd5 {[%clk 0:02:12]} 21. Qd3 {[%clk 0:00:35]}  f6 {[%clk 0:02:05]} 22. Bh4 {[%clk 0:00:34]}  Qc5 {[%clk 0:01:56]} 23. Nd4 {[%clk 0:00:35]}  Rad8 {[%clk 0:01:45]} 24. Bg3 {[%clk 0:00:33]}  Bb6 {[%clk 0:01:39]} 25. Qh7 {[%clk 0:00:31]}  Bg8 {[%clk 0:01:28]} 26. Qh8 {[%clk 0:00:32]}  Qd5 {[%clk 0:01:23]} 27. Nf3 {[%clk 0:00:25]}  Qf5 {[%clk 0:01:15]} 28. Qh4 {[%clk 0:00:22]}  Bf7 {[%clk 0:01:09]} 29. Qf4 {[%clk 0:00:20]}  Qc2 {[%clk 0:01:05]} 30. Qb4+ {[%clk 0:00:20]}  Kg8 {[%clk 0:00:56]} 31. Qxb6 {[%clk 0:00:21]}  Rf8 {[%clk 0:00:52]} 32. Rac1 {[%clk 0:00:20]}  Qa4 {[%clk 0:00:50]} 33. Nd4 {[%clk 0:00:20]}  Qxa2 {[%clk 0:00:43]} 34. Nf5 {[%clk 0:00:20]}  Rfe8 {[%clk 0:00:40]} 35. Ne7+ {[%clk 0:00:20]}  Kh7 {[%clk 0:00:35]} 36. Qb4 {[%clk 0:00:20]}  g5 {[%clk 0:00:28]} 37. Nxc6 {[%clk 0:00:20]}  Rc8 {[%clk 0:00:25]} 38. Nd4 {[%clk 0:00:18]}  Qd5 {[%clk 0:00:22]} 39. Qd6 {[%clk 0:00:18]}  Qb7 {[%clk 0:00:17]} 40. Qxf6 {[%clk 0:00:18]}  Bd5 {[%clk 0:00:13]} 41. Nf5 {[%clk 0:00:18]}  Bxg2 {[%clk 0:00:09]} 42. Qh6+ {[%clk 0:00:18]}  Kg8 {[%clk 0:00:09]} 43. Nd6 {[%clk 0:00:18]}  Qc6 {[%clk 0:00:05]} 44. Qxg5+ {[%clk 0:00:17]}  Kh7 {[%clk 0:00:05]} 45. Rxe8 {[%clk 0:00:17]}  Bh1 {[%clk 0:00:04]} 46. Re7+ {[%clk 0:00:16]}  Kh8 {[%clk 0:00:03]} 47. Be5# {[%clk 0:00:17]} 1-0


[Site "https://www.chess.com"]

[Event "Titled Tuesday Blitz June 27 Early 2023"]
[White "Cherniaiev, Tykhon"]
[Black "tetrix83"]
[WhiteFideId "14182360"]
[WhiteElo "2706"]
[BlackElo "2514"]
[Result "1/2-1/2"]
[Round "3"]
[TimeControl "180+2"]
[Date "2023.06.27"]
[WhiteClock "0:00:06"]
[BlackClock "0:00:12"]
[Board "91"]

1. Nf3 {[%clk 0:03:00]}  Nf6 {[%clk 0:02:58]} 2. d4 {[%clk 0:03:01]}  g6 {[%clk 0:02:59]} 3. c4 {[%clk 0:03:02]}  Bg7 {[%clk 0:02:59]} 4. g3 {[%clk 0:03:02]}  O-O {[%clk 0:03:00]} 5. Bg2 {[%clk 0:03:02]}  d6 {[%clk 0:03:00]} 6. O-O {[%clk 0:03:03]}  c6 {[%clk 0:03:01]} 7. Nc3 {[%clk 0:03:03]}  Bf5 {[%clk 0:03:01]} 8. b3 {[%clk 0:03:03]}  Ne4 {[%clk 0:03:01]} 9. Nxe4 {[%clk 0:03:02]}  Bxe4 {[%clk 0:03:02]} 10. Bb2 {[%clk 0:03:01]}  d5 {[%clk 0:02:58]} 11. Ne1 {[%clk 0:02:53]}  Bxg2 {[%clk 0:02:58]} 12. Nxg2 {[%clk 0:02:53]}  e6 {[%clk 0:02:52]} 13. Qd2 {[%clk 0:02:48]}  Nd7 {[%clk 0:02:51]} 14. Rfd1 {[%clk 0:02:17]}  Re8 {[%clk 0:02:45]} 15. Qc2 {[%clk 0:02:13]}  Rc8 {[%clk 0:02:43]} 16. e4 {[%clk 0:02:12]}  Nf6 {[%clk 0:02:31]} 17. e5 {[%clk 0:02:06]}  Ne4 {[%clk 0:02:29]} 18. Ne3 {[%clk 0:01:46]}  h5 {[%clk 0:02:20]} 19. f3 {[%clk 0:00:48]}  Ng5 {[%clk 0:02:20]} 20. Kg2 {[%clk 0:00:48]}  b5 {[%clk 0:02:16]} 21. h4 {[%clk 0:00:46]}  Nh7 {[%clk 0:02:16]} 22. Rac1 {[%clk 0:00:46]}  f5 {[%clk 0:02:10]} 23. f4 {[%clk 0:00:38]}  Bf8 {[%clk 0:01:58]} 24. Qe2 {[%clk 0:00:37]}  Qa5 {[%clk 0:01:54]} 25. Bc3 {[%clk 0:00:31]}  Qa6 {[%clk 0:01:51]} 26. Be1 {[%clk 0:00:26]}  Ba3 {[%clk 0:01:32]} 27. Rc2 {[%clk 0:00:26]}  bxc4 {[%clk 0:01:33]} 28. bxc4 {[%clk 0:00:26]}  Rb8 {[%clk 0:01:33]} 29. Bc3 {[%clk 0:00:14]}  Nf8 {[%clk 0:01:33]} 30. Bb2 {[%clk 0:00:07]}  Be7 {[%clk 0:01:30]} 31. Bc3 {[%clk 0:00:06]}  Nd7 {[%clk 0:01:30]} 32. Rdc1 {[%clk 0:00:06]}  Rb7 {[%clk 0:01:28]} 33. cxd5 {[%clk 0:00:05]}  Qxe2+ {[%clk 0:01:27]} 34. Rxe2 {[%clk 0:00:06]}  cxd5 {[%clk 0:01:27]} 35. Ba5 {[%clk 0:00:07]}  Reb8 {[%clk 0:01:22]} 36. Rc6 {[%clk 0:00:06]}  Kf7 {[%clk 0:01:21]} 37. Rec2 {[%clk 0:00:07]}  Rb2 {[%clk 0:01:19]} 38. Rxb2 {[%clk 0:00:07]}  Rxb2+ {[%clk 0:01:19]} 39. Rc2 {[%clk 0:00:08]}  Rxc2+ {[%clk 0:01:13]} 40. Nxc2 {[%clk 0:00:09]}  Nb8 {[%clk 0:01:13]} 41. Kf3 {[%clk 0:00:07]}  Nc6 {[%clk 0:01:13]} 42. Bc3 {[%clk 0:00:08]}  Ke8 {[%clk 0:01:13]} 43. Ke2 {[%clk 0:00:08]}  Kd7 {[%clk 0:01:13]} 44. Kd3 {[%clk 0:00:09]}  Kc7 {[%clk 0:01:13]} 45. Bd2 {[%clk 0:00:09]}  Kb6 {[%clk 0:01:13]} 46. Kc3 {[%clk 0:00:05]}  Kb5 {[%clk 0:01:10]} 47. Kb3 {[%clk 0:00:06]}  Na5+ {[%clk 0:00:56]} 48. Bxa5 {[%clk 0:00:06]}  Kxa5 {[%clk 0:00:57]} 49. a4 {[%clk 0:00:07]}  Bf8 {[%clk 0:00:56]} 50. Ne1 {[%clk 0:00:07]}  Bb4 {[%clk 0:00:48]} 51. Nd3 {[%clk 0:00:06]}  Bd2 {[%clk 0:00:45]} 52. Nc5 {[%clk 0:00:06]}  Be1 {[%clk 0:00:46]} 53. Nxe6 {[%clk 0:00:06]}  Bxg3 {[%clk 0:00:46]} 54. Nf8 {[%clk 0:00:06]}  Bxh4 {[%clk 0:00:36]} 55. Nxg6 {[%clk 0:00:07]}  Bd8 {[%clk 0:00:35]} 56. e6 {[%clk 0:00:04]}  h4 {[%clk 0:00:36]} 57. Ne5 {[%clk 0:00:02]}  h3 {[%clk 0:00:31]} 58. Nc6+ {[%clk 0:00:02]}  Kb6 {[%clk 0:00:31]} 59. Nxd8 {[%clk 0:00:02]}  Kc7 {[%clk 0:00:29]} 60. Nf7 {[%clk 0:00:02]}  h2 {[%clk 0:00:28]} 61. e7 {[%clk 0:00:03]}  Kd7 {[%clk 0:00:28]} 62. Nd6 {[%clk 0:00:03]}  h1=Q {[%clk 0:00:20]} 63. e8=Q+ {[%clk 0:00:03]}  Kxd6 {[%clk 0:00:21]} 64. Qe5+ {[%clk 0:00:04]}  Kc6 {[%clk 0:00:21]} 65. Qe6+ {[%clk 0:00:05]}  Kc7 {[%clk 0:00:21]} 66. Qe7+ {[%clk 0:00:05]}  Kc6 {[%clk 0:00:19]} 67. Qc5+ {[%clk 0:00:06]}  Kb7 {[%clk 0:00:19]} 68. Qb5+ {[%clk 0:00:06]}  Kc7 {[%clk 0:00:19]} 69. Qc5+ {[%clk 0:00:06]}  Kb7 {[%clk 0:00:19]} 70. Qe7+ {[%clk 0:00:07]}  Kc6 {[%clk 0:00:19]} 71. Qf6+ {[%clk 0:00:08]}  Kb7 {[%clk 0:00:19]} 72. Qe7+ {[%clk 0:00:03]}  Kb6 {[%clk 0:00:17]} 73. a5+ {[%clk 0:00:02]}  Ka6 {[%clk 0:00:12]} 74. Qd6+ {[%clk 0:00:02]}  Kxa5 {[%clk 0:00:11]} 75. Qc5+ {[%clk 0:00:02]}  Ka6 {[%clk 0:00:11]} 76. Qc6+ {[%clk 0:00:03]}  Ka5 {[%clk 0:00:12]} 77. Qc5+ {[%clk 0:00:04]}  Ka6 {[%clk 0:00:12]} 78. Qc6+ {[%clk 0:00:05]}  Ka5 {[%clk 0:00:12]} 79. Qc5+ {[%clk 0:00:06]} 1/2-1/2


[Site "https://www.chess.com"]